{"text_format":"1","workbook":"xlsx","n_sheets":2,"sheets":["VSURechner","Willkommen"],"not_rendered":{"charts":0,"images":2,"macros":1,"external_links":0,"defined_names":1,"comments":0,"pivot_tables":0},"unopened":[],"bounds":{"document_bytes":16777216,"sheet_cells":100000,"rows_first":2000,"rows_last":500,"rows_between":2000,"halvings":0,"cell_chars":16384,"cell_head_chars":4096},"cells_cut":0,"cells_raw":0,"read":"whole","date_system":"1900"}

{"sheet":"VSURechner","index":0,"n_rows":67,"n_cols":16,"rows_kept":67,"cut":false,"hidden":true,"merged":[]}
[]
[]
[]
[]
[]
[]
[]
[null,null,null,null,null,null,null,null,null,null,"Mögliche VSU",null,"Gesellschaftsform","Beschränkung",null,"Risiken"]
[null,null,null,null,null,null,null,null,null,"ohne HaftungsbeschränkungSteuerberater",500000,null,"AG","mit Haftungsbeschränkung",null,"Steuerberater"]
[null,null,null,null,null,null,null,null,null,"ohne HaftungsbeschränkungRechtsanwalt",500000,null,"GmbH","mit Haftungsbeschränkung",null,"Rechtsanwalt"]
[null,null,null,null,null,null,null,null,null,"mit HaftungsbeschränkungSteuerberater",1000000,null,"GmbH & Co. KG","mit Haftungsbeschränkung",null,"Wirtschaftsprüfer"]
[null,null,null,null,null,null,null,null,null,"mit HaftungsbeschränkungRechtsanwalt1",1000000,null,"KG","mit Haftungsbeschränkung"]
[null,null,null,"Fragen:",null,null,null,null,null,"ohne HaftungsbeschränkungWirtschaftsprüfer",1000000,null,"OHG","ohne Haftungsbeschränkung"]
[null,null,null,"Haftungsbeschränkung","OHG",null,null,null,null,"mit HaftungsbeschränkungWirtschaftsprüfer",1000000,null,"Part mbB","mit Haftungsbeschränkung"]
[null,null,null,"Haftungsbeschränkung",{"$f":"IFERROR(VLOOKUP(E14,M9:N16,2,FALSE),0)","v":"ohne Haftungsbeschränkung"},{"$f":"IFERROR(VLOOKUP(F16,$M$25:$O$27,IF($E$15=\"mit Haftungsbeschränkung\",2,3),FALSE),100)","v":3},{"$f":"IFERROR(VLOOKUP(G16,$M$25:$O$27,IF($E$15=\"mit Haftungsbeschränkung\",2,3),FALSE),100)","v":100},2,null,"mit HaftungsbeschränkungRechtsanwalt2,5",2500000,null,"Partnerschaft","ohne Haftungsbeschränkung"]
[null,null,null,"Welche Risiken?",{"$f":"HLOOKUP(SMALL(F15:H15,1),$F$15:$H$16,2,FALSE)","v":"Rechtsanwalt"},"Steuerberater",null,"Rechtsanwalt",null,null,null,null,"Sozietät/GbR","ohne Haftungsbeschränkung"]
[null,null,null,null,null,{"$f":"IF(F16<>\"\",\" Steuerberatern\",\"\")","v":" Steuerberatern"},{"$f":"IF(G16<>\"\",\" Wirtschaftsprüfern\",\"\")","v":""},{"$f":"IF(H16<>\"\",\" Rechtsanwälten\",\"\")","v":" Rechtsanwälten"}]
[null,null,null,null,null,"Gesellschafter/Geschäftsführer","Mitarbeiter"]
[null,null,null,"Anzahl der Berufsangehörige",{"$f":"IFERROR(F19+G19,\"falscher Wert\")","v":228},8,220,{"$f":"IFERROR(IF(AND(F19<99999999999,F19>0),\"Check\",\"kein Check\"),\"Kein Check\")","v":"Check"},{"$f":"IFERROR(IF(AND(G19<99999999999,G19>0),\"Check\",\"kein Check\"),\"Kein Check\")","v":"Check"}]
[null,null,null,"Code",{"$f":"E15&E16&IF(E19>10,2.5,1)","v":"ohne HaftungsbeschränkungRechtsanwalt2,5"}]
[null,null,null,null,{"$f":"E15&E16","v":"ohne HaftungsbeschränkungRechtsanwalt"}]
[null,null,null,"Code",{"$f":"IF(AND(E16=\"Rechtsanwalt\",E15=\"mit Haftungsbeschränkung\"),E20,E21)","v":"ohne HaftungsbeschränkungRechtsanwalt"}]
[null,null,null,"Bisherige Versicherungssumme",250,{"$f":"E23*1000","v":250000},null,null,null,"mit Haftungsbeschränkung"]
[null,null,null,"Versicherungssumme",{"$f":"VLOOKUP(E22,J9:K15,2,FALSE)","v":500000},null,null,null,null,null,null,"Wertung",null,"mit Haftungsbeschränkung","ohne Haftungsbeschränkung"]
[null,null,null,"Differenz",{"$f":"IF(E23<1000000,F23,E23)-E24","v":-250000},null,null,null,null,null,null,null,"Rechtsanwalt",1,2,"Rechtsanwalt"]
[null,null,null,null,null,null,null,null,null,null,null,null,"Wirtschaftsprüfer",2,1,"Wirtschaftsprüfer"]
[null,null,null,null,null,null,null,null,null,null,null,null,"Steuerberater",3,3,"Steuerberater"]
[]
[null,null,null,null,{"$f":"IFERROR(_xlfn.IFS(E14=\"\",\"x\",E16=0,\"x\",E19=0,\"x\",E23=\"\",\"x\"),\"Check\")","v":"Check"}]
[null,null,null,null,null,null,null,null,null,null,null,null,"Wirtschaftsprüfer"]
[null,null,null,null,null,null,null,null,null,null,null,null,"Rechtsanwalt"]
[null,null,null,null,null,null,null,null,null,null,null,null,"Steuerberater"]
[]
[null,null,null,null,"Es handet sich hierbei um eine",{"$f":"IF(E15=\"mit Haftungsbeschränkung\",\" haftungsbeschränkte\",\" nicht haftungsbeschränkte\")","v":" nicht haftungsbeschränkte"},{"$f":"IF(AND(F16<>\"\",G16<>\"\"),IF(G35=\" und\",\",\",\" und\"),\"\")","v":""},{"$f":"IF(AND(F16<>\"\",H16<>\"\"),\"und\",\"\")","v":"und"}]
[null,null,null,null," Berufausübungsgesellschaft mit",{"$f":"IF(AND(G34=\"\",H34=\"\"),\"\",\" und\")","v":" und"},{"$f":"IF(AND(G16<>\"\",H16<>\"\"),\" und\",\"\")","v":""}]
[]
[]
[null,null,null,null,{"$f":"E34&F34&E35&F17&F35&G17&G35&H17&\".\"","v":"Es handet sich hierbei um eine nicht haftungsbeschränkte Berufausübungsgesellschaft mit Steuerberatern und Rechtsanwälten."}]
[]
[]
[null,null,null,null,"Die derzeitige Versicherungssumme ist zum 01.08.2022",{"$f":"IF(E25>=0,\"noch ausreichend.\",\"nicht mehr ausreichend.\")","v":"nicht mehr ausreichend."},{"$f":"E41&\" \"&F41","v":"Die derzeitige Versicherungssumme ist zum 01.08.2022 nicht mehr ausreichend."}]
[null,null,null,null,"Es müsste eine Erhöhung der Versicherungssumme um ",{"$f":"E25*IF(E25<0,-1,1)","v":250000},"je Versicherungsfall erfolgen."]
[null,null,null,null,{"$f":"IF(E25<0,E42,\"\")","v":"Es müsste eine Erhöhung der Versicherungssumme um "},{"$f":"IF(E25<0,TEXT(F42,\"###.###\")&\" EUR \",\"\")","v":"250.000 EUR "},{"$f":"IF(E25<0,G42,\"\")","v":"je Versicherungsfall erfolgen."},{"$f":"E43&F43&G43","v":"Es müsste eine Erhöhung der Versicherungssumme um 250.000 EUR je Versicherungsfall erfolgen."}]
[]
[]
[]
[null,null,null,"©"]
[null,null,null,null,"Mindestversicherungssumme"]
[]
[null,null,null,null,{"$f":"TEXT(E24,\"###.###\")&\" EUR,\"","v":"500.000 EUR,"},{"$f":"IF(F19>4,F19,4)","v":8}]
[null,null,null,null,{"$f":"TEXT(F50*E24,\"###.###\")&\" EUR,\"","v":"4.000.000 EUR,"}]
[null,null,null,null,{"$f":"\"Entspricht dem \"&F50&\"-fachen der Mindestversicherungssumme. Die Maximierung richtet sich nach der Anzahl der Gesellschafter und Geschäftsführer, die nicht Gesellschafter sind.\"","v":"Entspricht dem 8-fachen der Mindestversicherungssumme. Die Maximierung richtet sich nach der Anzahl der Gesellschafter und Geschäftsführer, die nicht Gesellschafter sind."}]
[]
[]
[]
[null,null,null,null,"Bei der BAG richtet sich die Jahresmaximierung nach der Anzahl der Gesellschafter und Geschäftsführer, die nicht Gesellschafter sind. Die Jahresmaximierung muss allerdings mindestens das Vierfache der Mindestversicherungssumme betragen."]
[]
[]
[]
[]
[]
[]
[]
[]
[]
[]
[null,null,null,null,"i4"]

{"sheet":"Willkommen","index":1,"n_rows":0,"n_cols":0,"rows_kept":0,"cut":false,"hidden":false,"merged":[]}